bitfinex/quotes_BTCUSD_20240611
["timestamp","ask_amount","ask_price","bid_price","bid_amount"]
[1718083941812,0.19769659,67850.0,67848.0,0.148387]
[1718083942346,0.19769659,67850.0,67848.0,0.149387]
[1718083942985,0.19769659,67849.0,67848.0,0.149387]
[1718083943204,0.21769659,67849.0,67848.0,0.149387]
[1718083943591,0.21769659,67849.0,67848.0,0.148387]
[1718083943808,0.21769659,67849.0,67848.0,0.149387]
[1718083944139,0.21769659,67849.0,67848.0,0.148387]
[1718083944419,0.21769659,67849.0,67848.0,0.147387]
[1718083944420,0.19769659,67849.0,67848.0,0.147387]
[1718083944572,0.19769659,67849.0,67848.0,0.149387]
[1718083944777,0.19769659,67849.0,67848.0,0.28269706]
[1718083945226,0.28069659,67852.0,67848.0,0.28269706]
[1718083945445,0.28069659,67852.0,67849.0,0.13331006]
[1718083945653,0.19769659,67852.0,67850.0,0.147383]
[1718083946002,0.19769659,67853.0,67850.0,0.147383]
[1718083946223,0.19769659,67852.0,67850.0,0.147383]
[1718083946451,0.19769659,67851.0,67850.0,0.147383]
[1718083947302,0.1521,67860.0,67850.0,0.147383]
[1718083947303,0.19769659,67857.0,67850.0,0.147383]
[1718083947502,0.19769659,67853.0,67850.0,0.148383]
[1718083947719,0.19769659,67855.0,67850.0,0.147383]
[1718083947918,0.19769659,67855.0,67850.0,0.148383]
[1718083948124,0.19769659,67853.0,67851.0,0.147381]
[1718083948822,0.19769659,67852.0,67851.0,0.147381]
[1718083950333,0.21769659,67852.0,67851.0,0.147381]
[1718083950528,0.21769659,67852.0,67851.0,0.001]
[1718083950729,0.44889659,67852.0,67851.0,0.001]
[1718083951294,0.44889659,67852.0,67851.0,0.002]
[1718083955395,0.44889659,67852.0,67851.0,0.004266]
[1718083960984,0.53399659,67852.0,67851.0,0.004266]
[1718083963290,0.51399659,67852.0,67851.0,0.004266]
[1718083963516,0.53399659,67852.0,67851.0,0.004266]
[1718083964858,0.29899659,67852.0,67851.0,0.004266]
[1718083965700,0.29899659,67852.0,67851.0,0.005212]
[1718083967844,0.21389659,67852.0,67851.0,0.005212]
[1718083968043,0.29899659,67852.0,67851.0,0.005212]
[1718083968369,0.21389659,67852.0,67851.0,0.005212]
[1718083974482,0.29899659,67852.0,67851.0,0.005212]
[1718083974713,0.30899659,67852.0,67851.0,0.005212]
[1718083975140,0.29899659,67852.0,67851.0,0.005212]
[1718083976714,0.30899659,67852.0,67851.0,0.005212]
[1718083977771,0.30899659,67852.0,67851.0,0.004212]
[1718083977968,0.30899659,67852.0,67851.0,0.003212]
[1718083978304,0.30899659,67852.0,67851.0,0.005212]
[1718083978719,0.30899659,67852.0,67851.0,0.004212]
[1718083979137,0.22389659,67852.0,67851.0,0.005212]
[1718083979309,0.29899659,67852.0,67851.0,0.005212]
[1718083980012,0.30899659,67852.0,67851.0,0.005212]
[1718083980429,0.29899659,67852.0,67851.0,0.005212]
[1718083982348,0.30899659,67852.0,67851.0,0.005212]
[1718083982878,0.29899659,67852.0,67851.0,0.005212]
[1718083983084,0.30899659,67852.0,67851.0,0.005212]
[1718083983321,0.29899659,67852.0,67851.0,0.005212]
[1718083991702,0.29870671,67852.0,67851.0,0.005212]
[1718083992239,0.30870671,67852.0,67851.0,0.005212]
[1718083994446,0.21360671,67852.0,67851.0,0.005212]
[1718083994664,0.2582,67852.0,67851.0,0.005212]
[1718083995301,0.2582,67852.0,67842.0,0.1474]
[1718083995302,0.94174713,67852.0,67829.0,0.05521832]
[1718083995530,0.3586,67836.0,67825.0,0.05521832]
[1718083995773,0.65033393,67836.0,67825.0,0.43295979]
[1718083995982,0.65033393,67836.0,67823.0,0.000946]
[1718083996878,0.65033393,67836.0,67835.0,0.00117745]
[1718083997012,0.65033393,67836.0,67835.0,0.00017745]
[1718083997222,0.65033393,67836.0,67835.0,0.00117745]
[1718083997422,0.65033393,67836.0,67835.0,0.00217745]
[1718083997827,0.65033393,67836.0,67835.0,0.00117745]
[1718083998291,0.65033393,67836.0,67835.0,0.00217745]
[1718083998471,0.85033393,67836.0,67835.0,0.00217745]
[1718083998675,0.56523393,67836.0,67835.0,0.00217745]
[1718083998871,0.65033393,67836.0,67835.0,0.00217745]
[1718083999073,0.85033393,67836.0,67835.0,0.00217745]
[1718083999720,0.85033393,67836.0,67835.0,0.00117745]
[1718083999919,0.85033393,67836.0,67835.0,0.00212345]
[1718084000160,0.85033393,67836.0,67835.0,0.00112345]
[1718084000161,0.85533393,67836.0,67835.0,0.00112345]
[1718084000372,0.76523393,67836.0,67835.0,0.00112345]
[1718084000576,0.85033393,67836.0,67835.0,0.00212345]
[1718084000992,0.85033393,67836.0,67835.0,0.00112345]
[1718084001187,0.85533393,67836.0,67835.0,0.00112345]
[1718084001434,0.85933393,67836.0,67835.0,0.00112345]
[1718084001634,0.56923393,67836.0,67835.0,0.00112345]
[1718084001833,0.85033393,67836.0,67835.0,0.00112345]
[1718084002214,0.85533393,67836.0,67835.0,0.00212345]
[1718084003044,0.86133393,67836.0,67835.0,0.00312345]
[1718084003248,1.2023669,67836.0,67835.0,0.00312345]
[1718084003497,1.4253669,67836.0,67835.0,0.00312345]
[1718084003727,1.37916193,67836.0,67835.0,0.00312345]
[1718084004340,1.36816193,67836.0,67835.0,0.00112345]
[1718084004537,1.37516193,67836.0,67835.0,0.00212345]
[1718084004741,1.38116193,67836.0,67835.0,0.00312345]
[1718084006878,0.86333393,67836.0,67835.0,0.00312345]
[1718084007110,1.06333393,67836.0,67835.0,0.00312345]
[1718084007820,0.98105034,67836.0,67835.0,0.00312345]
[1718084009969,1.04003534,67836.0,67835.0,0.00312345]
[1718084012180,0.45245034,67836.0,67835.0,0.00312345]
[1718084012389,0.43755034,67836.0,67835.0,0.00312345]
[1718084016395,0.35245034,67836.0,67835.0,0.00312345]
[1718084016523,0.43755034,67836.0,67835.0,0.00312345]
[1718084017719,0.60115034,67836.0,67835.0,0.00312345]
[1718084021736,0.43755034,67836.0,67835.0,0.00312345]
[1718084027886,0.35245034,67836.0,67835.0,0.00312345]
[1718084028086,0.34245034,67836.0,67835.0,0.00312345]
[1718084028364,0.42755034,67836.0,67835.0,0.00312345]
[1718084028989,0.43755034,67836.0,67835.0,0.00312345]
[1718084029190,0.42755034,67836.0,67835.0,0.00312345]
[1718084029394,0.43755034,67836.0,67835.0,0.00312345]
[1718084030441,0.63755034,67836.0,67835.0,0.00312345]
[1718084030797,1.37757834,67836.0,67835.0,0.00312345]
[1718084030998,1.50317534,67836.0,67835.0,0.00312345]
[1718084031730,1.60037224,67836.0,67835.0,0.00312345]
[1718084034983,1.6359063,67836.0,67835.0,0.00312345]
[1718084035157,1.9537343,67836.0,67835.0,0.00312345]
[1718084035361,1.99769757,67836.0,67835.0,0.00312345]
[1718084036016,0.81544,67824.0,67823.0,0.000946]
[1718084036205,1.43973993,67824.0,67823.0,0.000946]
[1718084037543,1.44673993,67824.0,67823.0,0.000946]
[1718084038000,1.43973993,67824.0,67823.0,0.000946]
[1718084038287,0.577468,67811.0,67804.0,0.000946]
[1718084038489,0.95988793,67811.0,67804.0,0.000946]
[1718084039170,0.85988793,67811.0,67804.0,0.000946]
[1718084039551,0.94498793,67811.0,67804.0,0.000946]
[1718084039756,1.14498793,67811.0,67804.0,0.000946]
[1718084040788,1.07298793,67811.0,67804.0,0.000946]
[1718084042243,1.36792493,67811.0,67804.0,0.000946]
[1718084042441,1.52164729,67811.0,67804.0,0.000946]
[1718084042645,1.59764729,67811.0,67804.0,0.000946]
[1718084042876,1.46692493,67811.0,67804.0,0.000946]
[1718084043458,1.46492493,67811.0,67804.0,0.000946]
[1718084043690,1.26592493,67811.0,67804.0,0.000946]
[1718084043894,1.27992493,67811.0,67804.0,0.000946]
[1718084044092,1.27692493,67811.0,67804.0,0.000946]
[1718084044320,1.47692493,67811.0,67804.0,0.000946]
[1718084044527,0.63578793,67811.0,67804.0,0.000946]
[1718084044723,0.72088793,67811.0,67804.0,0.157346]
[1718084045364,0.73895032,67811.0,67804.0,0.157346]
[1718084045571,0.75295032,67811.0,67804.0,0.157346]
[1718084047588,0.90455032,67811.0,67804.0,0.157346]
[1718084048973,0.75295032,67811.0,67804.0,0.157346]
[1718084051749,0.66785032,67811.0,67804.0,0.157346]
[1718084051955,0.75295032,67811.0,67804.0,0.157346]
[1718084058509,0.95295032,67811.0,67804.0,0.157346]
[1718084058717,1.11325032,67811.0,67804.0,0.000946]
[1718084058922,1.48948732,67811.0,67804.0,0.000946]
[1718084059161,1.51248732,67811.0,67804.0,0.000946]
[1718084059375,1.48948732,67811.0,67804.0,0.000946]
[1718084059803,1.63380725,67811.0,67804.0,0.000946]
[1718084060010,1.65680725,67811.0,67804.0,0.000946]
[1718084060425,1.20818732,67811.0,67804.0,0.000946]
[1718084060650,0.75295032,67811.0,67806.0,0.0821]
[1718084064476,0.95295032,67811.0,67806.0,0.0821]
[1718084065509,0.75295032,67811.0,67806.0,0.0821]
[1718084066133,0.75295032,67811.0,67804.0,0.078946]
[1718084066134,1.04788732,67811.0,67804.0,0.078946]
[1718084067189,1.32518732,67811.0,67804.0,0.000946]
[1718084068320,1.53544806,67811.0,67804.0,0.000946]
[1718084069457,1.33544806,67811.0,67804.0,0.000946]
[1718084070341,1.34134906,67811.0,67804.0,0.000946]
[1718084071883,1.12088294,67811.0,67804.0,0.000946]
[1718084072088,1.13108832,67811.0,67804.0,0.000946]
[1718084072498,1.04598832,67811.0,67804.0,0.000946]
[1718084072698,1.13108832,67811.0,67804.0,0.000946]
[1718084073161,1.04598832,67811.0,67804.0,0.000946]
[1718084073380,1.13108832,67811.0,67804.0,0.000946]
[1718084073608,1.12081525,67811.0,67804.0,0.000946]
[1718084074049,1.13108832,67811.0,67804.0,0.000946]
[1718084074528,1.21786687,67811.0,67804.0,0.000946]
[1718084075191,1.56886687,67811.0,67804.0,0.000946]
[1718084075634,1.7361868,67811.0,67804.0,0.000946]
[1718084077393,1.5361868,67811.0,67804.0,0.000946]
[1718084077615,1.7361868,67811.0,67804.0,0.000946]
[1718084078747,0.3,67805.0,67804.0,0.000946]
[1718084078953,0.5288,67802.0,67801.0,0.00400005]
[1718084079177,1.18199014,67802.0,67801.0,0.00400005]
[1718084079393,1.1807309,67802.0,67801.0,0.00400005]
[1718084079616,0.79307754,67802.0,67801.0,0.08180005]
[1718084079833,0.70690793,67802.0,67801.0,0.00400005]
[1718084080442,0.75070048,67802.0,67801.0,0.00400005]
[1718084080816,0.70690793,67802.0,67801.0,0.00400005]
[1718084081228,0.72090793,67802.0,67801.0,0.00400005]
[1718084081436,0.90400793,67802.0,67801.0,0.00400005]
[1718084081852,0.73490793,67802.0,67801.0,0.00400005]
[1718084082089,0.77871895,67802.0,67801.0,0.00400005]
[1718084082265,0.73490793,67802.0,67801.0,0.00400005]
[1718084082472,0.72090793,67802.0,67801.0,0.00400005]
[1718084083390,0.61180793,67802.0,67801.0,0.00400005]
[1718084083565,0.266588,67802.0,67801.0,0.24060005]
[1718084084009,0.280588,67802.0,67801.0,0.24060005]
[1718084084693,0.195488,67802.0,67801.0,0.24060005]
[1718084084914,0.280588,67802.0,67801.0,0.24060005]
[1718084086193,0.195488,67802.0,67801.0,0.24060005]
[1718084086366,0.280588,67802.0,67801.0,0.24060005]
[1718084086895,0.280588,67802.0,67801.0,0.24350005]
[1718084087444,0.280588,67802.0,67801.0,0.24060005]
[1718084087655,0.266588,67802.0,67801.0,0.24060005]
[1718084087854,0.261588,67802.0,67801.0,0.24060005]
[1718084088059,0.009,67802.0,67801.0,0.24350005]
[1718084088459,0.019,67802.0,67801.0,0.39473113]
[1718084088636,0.019,67802.0,67801.0,0.47121555]
[1718084089724,0.009,67802.0,67801.0,0.47121555]
[1718084089931,0.013,67802.0,67801.0,0.47121555]
[1718084090143,0.004,67802.0,67801.0,0.47121555]
[1718084090357,0.007,67802.0,67801.0,0.47121555]
[1718084091450,0.007,67802.0,67801.0,0.39517825]
[1718084091877,0.007,67802.0,67801.0,0.31869383]
[1718084092082,0.027,67802.0,67801.0,0.39516869]
[1718084092513,0.007,67802.0,67801.0,0.39516869]
[1718084093867,0.027,67802.0,67801.0,0.39516869]
[1718084094547,0.007,67802.0,67801.0,0.39516869]
[1718084095862,0.027,67802.0,67801.0,0.39516869]
[1718084096068,0.007,67802.0,67801.0,0.39516869]
[1718084096481,0.007,67802.0,67801.0,0.39688724]
[1718084097428,0.007,67802.0,67801.0,0.24393758]
[1718084097635,0.003,67802.0,67801.0,0.39688723]
[1718084098059,0.02,67806.0,67801.0,0.23232448]
[1718084098262,0.02,67806.0,67802.0,0.22942448]
[1718084098463,0.02,67805.0,67804.0,0.0029]
[1718084098714,0.02,67805.0,67804.0,0.38454965]
[1718084098946,0.02,67806.0,67805.0,0.0029]
[1718084099155,0.02,67806.0,67805.0,0.15584965]
[1718084100839,0.19682931,67815.0,67806.0,0.0029]
[1718084101099,0.19682931,67815.0,67801.0,0.154246]
[1718084101100,0.04936931,67815.0,67814.0,0.0029]
[1718084101301,0.06936931,67815.0,67814.0,0.0029]
[1718084101501,0.02,67815.0,67814.0,0.15582368]
[1718084101701,0.02,67815.0,67814.0,0.39532368]
[1718084102127,0.1051,67815.0,67814.0,0.39532368]
[1718084102406,0.1051,67815.0,67814.0,0.39242368]
[1718084103391,0.1051,67815.0,67814.0,0.0767]
[1718084103590,0.1051,67815.0,67808.0,0.0029]
[1718084103591,0.02,67810.0,67809.0,0.1571]
[1718084103791,0.02,67810.0,67809.0,0.31002871]
[1718084103792,0.1051,67810.0,67809.0,0.31002871]
[1718084103994,0.1051,67810.0,67809.0,0.15292871]
[1718084104397,0.02,67803.0,67802.0,0.2365]
[1718084104659,0.1051,67803.0,67802.0,0.15294442]
[1718084104859,0.1051,67803.0,67800.0,0.0208]
[1718084105061,0.02,67802.0,67800.0,0.0208]
[1718084105396,0.02,67805.0,67804.0,0.0029]
[1718084105602,0.02,67805.0,67804.0,0.0806]
[1718084106174,0.02,67805.0,67804.0,0.2361]
[1718084106513,0.02,67805.0,67804.0,0.38900933]
[1718084107930,0.02,67805.0,67804.0,0.2361]
[1718084109168,0.0192,67802.0,67801.0,0.154146]
[1718084109375,0.1142,67802.0,67801.0,0.000946]
[1718084109602,0.1042,67802.0,67801.0,0.000946]
[1718084109813,0.1142,67802.0,67801.0,0.000946]
[1718084113729,0.72106789,67802.0,67801.0,0.000946]
[1718084113915,0.84243357,67802.0,67801.0,0.000946]
[1718084114119,0.56380793,67802.0,67801.0,0.000946]
[1718084114332,0.64890793,67802.0,67801.0,0.000946]
[1718084114551,1.09087667,67802.0,67801.0,0.000946]
[1718084114757,1.40371181,67802.0,67801.0,0.000946]
[1718084114991,1.58708448,67802.0,67801.0,0.000946]
[1718084115194,1.6413853,67802.0,67801.0,0.000946]
[1718084115652,0.573696,67798.0,67797.0,0.009438]
[1718084115860,1.58337767,67798.0,67797.0,0.009438]
[1718084116742,0.2158,67797.0,67796.0,0.0007]
[1718084116954,0.6582,67788.0,67776.0,0.009427]
[1718084117159,0.69181993,67788.0,67776.0,0.009427]
[1718084117366,1.03513793,67788.0,67776.0,0.009427]
[1718084117569,1.05813793,67788.0,67776.0,0.009427]
[1718084118342,1.45317493,67788.0,67776.0,0.009427]
[1718084118857,0.610727,67784.0,67776.0,0.009427]
[1718084119070,0.87804693,67784.0,67776.0,0.009427]
[1718084119409,1.17310093,67784.0,67776.0,0.009427]
[1718084119625,0.571933,67781.0,67776.0,0.009427]
[1718084119830,1.29095293,67781.0,67776.0,0.009427]
[1718084120029,1.88378402,67781.0,67776.0,0.009427]
[1718084120234,1.005427,67777.0,67776.0,0.009427]
[1718084120444,1.17274693,67777.0,67776.0,0.009427]
[1718084120865,0.0186,67756.0,67755.0,0.009427]
[1718084121071,0.53380793,67756.0,67755.0,0.01591081]
[1718084121284,0.53380793,67756.0,67755.0,0.009427]
[1718084121500,0.72380793,67756.0,67755.0,0.009427]
[1718084121709,0.31050793,67756.0,67755.0,0.009427]
[1718084122945,0.51050793,67756.0,67755.0,0.009427]
[1718084123154,0.52350793,67756.0,67755.0,0.009427]
[1718084123355,0.0316,67756.0,67755.0,0.013627]
[1718084123565,0.0436,67756.0,67755.0,0.009427]
[1718084123998,0.2569,67756.0,67755.0,0.009427]
[1718084124201,0.40121993,67756.0,67755.0,0.009427]
[1718084124417,0.61121993,67756.0,67755.0,0.009427]
[1718084125260,0.60121993,67756.0,67755.0,0.009427]
[1718084125473,0.0436,67756.0,67755.0,0.009427]
[1718084125682,0.2569,67756.0,67755.0,0.009427]
[1718084125907,0.2383,67756.0,67755.0,0.009427]
[1718084126111,0.025,67756.0,67755.0,0.242227]
[1718084126526,0.025,67756.0,67755.0,0.24947222]
[1718084126940,0.013,67756.0,67755.0,0.24947222]
[1718084127357,0.017,67756.0,67755.0,0.24947222]
[1718084127972,0.004,67756.0,67755.0,0.24947222]
[1718084128385,0.009,67756.0,67755.0,0.24947222]
[1718084130803,0.009,67756.0,67755.0,0.24997222]
[1718084131545,0.009,67756.0,67755.0,0.390317]
[1718084131995,0.009,67756.0,67755.0,0.83463693]
[1718084132206,0.004,67756.0,67755.0,1.03463693]
[1718084132639,0.4718,67774.0,67768.0,0.392862]
[1718084132872,0.4718,67774.0,67768.0,0.392362]
[1718084133303,0.000946,67776.0,67775.0,0.0042]
[1718084134226,0.000946,67776.0,67775.0,0.2357]
[1718084134864,0.000946,67776.0,67775.0,0.2352]
[1718084135324,0.000946,67776.0,67775.0,0.383247]
[1718084135984,0.000946,67776.0,67775.0,0.383747]
[1718084136207,0.000946,67776.0,67775.0,0.384247]
[1718084136424,0.000946,67776.0,67775.0,0.382747]
[1718084136886,0.000946,67776.0,67775.0,0.383747]
[1718084137297,0.000946,67776.0,67775.0,0.382747]
[1718084137738,0.000946,67776.0,67775.0,0.383747]
[1718084137967,0.019546,67776.0,67775.0,0.001]
[1718084138194,0.000946,67776.0,67775.0,0.0052]
[1718084138422,0.000946,67776.0,67775.0,0.0867]
[1718084138635,0.000946,67776.0,67775.0,0.2378]
[1718084139100,0.000946,67776.0,67775.0,0.384347]
[1718084139314,0.000946,67776.0,67775.0,0.385347]
[1718084139936,0.000946,67776.0,67764.0,0.2]
[1718084139937,0.000946,67776.0,67774.0,0.0042]
[1718084140189,0.0186,67775.0,67774.0,0.0042]
[1718084140403,0.000946,67776.0,67775.0,0.0042]
[1718084141034,0.000946,67776.0,67775.0,0.0052]
[1718084142312,0.000946,67776.0,67775.0,0.0042]
[1718084142754,0.000946,67776.0,67775.0,0.0052]
[1718084143187,0.16386593,67776.0,67775.0,0.001]
[1718084143399,0.71130993,67776.0,67775.0,0.001]
[1718084144059,0.0186,67767.0,67766.0,0.0042]
[1718084144320,0.0186,67765.0,67764.0,0.0042]
[1718084144766,0.0186,67765.0,67755.0,0.009427]
[1718084144767,0.0186,67757.0,67755.0,0.009427]
[1718084144988,0.73380793,67756.0,67755.0,0.009427]
[1718084145192,0.51050793,67756.0,67755.0,0.009427]
[1718084145408,0.52050793,67756.0,67755.0,0.009427]
[1718084145615,0.54350793,67756.0,67755.0,0.009427]
[1718084146715,0.63530793,67756.0,67755.0,0.009427]
[1718084147342,0.62530793,67756.0,67755.0,0.009427]
[1718084147721,0.63530793,67756.0,67755.0,0.009427]
[1718084148453,1.61720468,67756.0,67755.0,0.009427]
[1718084148924,1.60720468,67756.0,67755.0,0.009427]
[1718084149351,1.62720468,67756.0,67755.0,0.009427]
[1718084149571,1.47018393,67756.0,67755.0,0.009427]
[1718084149785,0.88920793,67756.0,67755.0,0.009427]
[1718084150019,0.90220793,67756.0,67755.0,0.009427]
[1718084150242,0.89120793,67756.0,67755.0,0.009427]
[1718084150509,0.90420793,67756.0,67755.0,0.009427]
[1718084150715,0.89220793,67756.0,67755.0,0.009427]
[1718084150923,0.87920793,67756.0,67755.0,0.009427]
[1718084151135,0.89320793,67756.0,67755.0,0.009427]
[1718084151564,0.77840793,67756.0,67755.0,0.009427]
[1718084151796,0.67840793,67756.0,67755.0,0.009427]
[1718084152000,0.69240793,67756.0,67755.0,0.009427]
[1718084152442,0.53850793,67756.0,67755.0,0.009427]
[1718084153334,0.74430793,67756.0,67755.0,0.009427]
[1718084153546,1.00190793,67756.0,67755.0,0.009427]
[1718084156028,0.80610793,67756.0,67755.0,0.009427]
[1718084156488,0.57150793,67756.0,67755.0,0.009427]
[1718084158479,0.53850793,67756.0,67755.0,0.009427]
[1718084158695,0.33850793,67756.0,67755.0,0.009427]
[1718084159517,0.0466,67756.0,67755.0,0.009427]
[1718084160569,0.0186,67756.0,67755.0,0.013627]
[1718084160779,0.0286,67756.0,67755.0,0.013627]
[1718084161003,0.02,67756.0,67755.0,0.248927]
[1718084162021,0.02,67756.0,67755.0,0.396517]
[1718084162643,0.02,67756.0,67755.0,0.397017]
[1718084162844,0.01,67756.0,67755.0,0.397017]
[1718084163064,0.01,67756.0,67755.0,0.497017]
[1718084163266,0.4904,67768.0,67759.0,0.14758]
[1718084163468,0.4904,67768.0,67767.0,0.2524]
[1718084165163,0.0186,67768.0,67767.0,0.2524]
[1718084165653,0.0186,67771.0,67770.0,0.0042]
[1718084165823,0.0186,67775.0,67774.0,0.0042]
[1718084166610,0.0186,67775.0,67772.0,0.0042]
[1718084166811,0.0186,67771.0,67770.0,0.0042]
[1718084167078,0.0186,67771.0,67770.0,0.0052]
[1718084167676,0.0186,67772.0,67770.0,0.0052]
[1718084167875,0.0186,67773.0,67772.0,0.0042]
[1718084168190,0.0226,67775.0,67774.0,0.0042]
[1718084168400,0.0226,67775.0,67770.0,0.001]
[1718084168616,0.0186,67771.0,67770.0,0.001]
[1718084168834,0.0186,67771.0,67762.0,0.1577]
[1718084168835,0.0186,67768.0,67767.0,0.0042]
[1718084169038,0.0186,67772.0,67771.0,0.0042]
[1718084169262,0.0186,67772.0,67771.0,0.0824]
[1718084169696,0.0186,67773.0,67772.0,0.0042]
[1718084170101,0.0186,67773.0,67771.0,0.0782]
[1718084170308,0.0186,67772.0,67771.0,0.0824]
[1718084170512,0.0186,67772.0,67771.0,0.0782]
[1718084171372,0.0186,67772.0,67771.0,0.0824]
[1718084172482,0.0186,67773.0,67772.0,0.0042]
[1718084173754,0.0186,67772.0,67771.0,0.0782]
[1718084173962,0.0186,67763.0,67762.0,0.1619]
[1718084174169,0.0186,67763.0,67762.0,0.1577]
[1718084174380,0.002,67773.0,67760.0,0.0802]
[1718084174381,0.0186,67761.0,67760.0,0.0802]
[1718084175248,0.0186,67756.0,67755.0,0.013627]
[1718084175674,0.0186,67756.0,67755.0,0.009427]
[1718084176983,0.0186,67756.0,67755.0,0.010427]
[1718084177354,0.0186,67756.0,67755.0,0.009427]
[1718084177568,0.01842242,67756.0,67755.0,0.009427]
[1718084178559,0.68073035,67756.0,67755.0,0.009427]
[1718084178768,0.89403035,67756.0,67755.0,0.010427]
[1718084179930,0.89403035,67756.0,67755.0,0.009427]
[1718084180354,0.67973035,67756.0,67755.0,0.009427]
[1718084180556,0.67973035,67756.0,67755.0,0.010427]
[1718084181866,0.67973035,67756.0,67755.0,0.009427]
[1718084182265,0.37701042,67756.0,67755.0,0.009427]
[1718084182502,0.02042242,67756.0,67755.0,0.013627]
[1718084182703,0.01842242,67756.0,67755.0,0.013627]
[1718084183066,0.02642242,67756.0,67755.0,0.013627]
[1718084183277,0.02942242,67756.0,67755.0,0.013627]
[1718084183671,0.02642242,67756.0,67755.0,0.013627]
[1718084184244,0.03542242,67756.0,67755.0,0.013627]
[1718084185301,0.017,67756.0,67755.0,0.013627]
[1718084187085,0.01842242,67765.0,67764.0,0.0042]
[1718084187327,0.4718,67768.0,67759.0,0.0042]
[1718084187328,0.01842242,67760.0,67759.0,0.0042]
[1718084187555,0.01842242,67764.0,67763.0,0.0042]
[1718084189353,0.02242242,67764.0,67763.0,0.0042]
[1718084189561,0.004,67764.0,67763.0,0.0042]
[1718084190171,0.008,67764.0,67763.0,0.0042]
[1718084190598,0.008,67764.0,67763.0,0.1656]
[1718084191438,0.008,67764.0,67763.0,0.2462]
[1718084192314,0.004,67764.0,67763.0,0.2462]
[1718084192487,0.002,67764.0,67763.0,0.36707495]
[1718084192881,0.005,67764.0,67763.0,0.36707495]
[1718084193294,0.005,67764.0,67763.0,0.36757495]
[1718084193495,0.005,67764.0,67763.0,0.36707495]
[1718084194767,0.005,67764.0,67763.0,0.24706]
[1718084195177,0.005,67764.0,67763.0,0.394633]
[1718084195528,0.005,67764.0,67763.0,0.51533321]
[1718084196521,0.002,67764.0,67763.0,0.51533321]
[1718084196725,0.002,67764.0,67763.0,0.51583321]
[1718084196927,0.002,67764.0,67763.0,0.8218598]
[1718084197615,0.002,67764.0,67763.0,0.96617973]
[1718084198197,0.04987547,67774.0,67766.0,0.147564]
[1718084198366,0.04987547,67774.0,67773.0,0.0042]
[1718084198553,0.04987547,67774.0,67763.0,0.001]
[1718084198554,0.0794767,67772.0,67763.0,0.001]
[1718084198753,0.0794767,67772.0,67764.0,0.42754087]
[1718084198964,0.09839912,67772.0,67766.0,0.147564]
[1718084199185,0.0794767,67772.0,67767.0,0.12152064]
[1718084200206,0.0794767,67772.0,67770.0,0.0005017]
[1718084200780,0.0794767,67772.0,67766.0,0.14595329]
[1718084200991,0.01892242,67768.0,67767.0,0.12154562]
[1718084201238,0.17342242,67768.0,67767.0,0.12154562]
[1718084201446,0.17342242,67768.0,67764.0,0.00033286]
[1718084201655,0.17342242,67768.0,67767.0,0.001]
[1718084201857,0.27342242,67768.0,67767.0,0.001]
[1718084202058,0.27342242,67768.0,67764.0,0.00033286]
[1718084202259,0.01892242,67765.0,67764.0,0.00033286]
[1718084203342,0.11892242,67766.0,67764.0,0.00133286]
[1718084203818,0.01892242,67765.0,67764.0,0.00133286]
[1718084205275,0.01892242,67765.0,67764.0,0.00033286]
[1718084205716,0.01892242,67765.0,67764.0,0.00133286]
[1718084206175,0.01892242,67765.0,67764.0,0.00033286]
[1718084206625,0.01892242,67760.0,67754.0,0.147592]
[1718084206848,0.1,67762.0,67754.0,0.147592]
[1718084206849,0.11892242,67762.0,67754.0,0.147592]
[1718084207068,0.1,67762.0,67754.0,0.147592]
[1718084207309,0.1,67762.0,67755.0,0.147589]
[1718084207521,0.01892242,67760.0,67755.0,0.147589]
[1718084207727,0.1,67762.0,67755.0,0.147589]
[1718084207728,0.11892242,67762.0,67755.0,0.147589]
[1718084207932,0.14431993,67765.0,67757.0,0.147585]
[1718084207933,0.01892242,67764.0,67757.0,0.147585]
[1718084208495,0.17918661,67766.0,67758.0,0.147583]
[1718084208698,0.19810903,67766.0,67764.0,0.001]
[1718084208919,0.01892242,67765.0,67764.0,0.001]
[1718084209502,0.01892242,67765.0,67758.0,0.147583]
[1718084209884,0.01892242,67765.0,67758.0,0.148583]
[1718084210228,0.07918661,67766.0,67760.0,0.147579]
[1718084211634,0.09810903,67766.0,67760.0,0.147579]
[1718084212265,0.09810903,67766.0,67761.0,0.30605658]
[1718084213189,0.07918661,67766.0,67761.0,0.30605658]
[1718084213389,0.01892242,67763.0,67761.0,0.30605658]
[1718084214043,0.01892242,67765.0,67761.0,0.30605658]
[1718084214450,0.01892242,67764.0,67761.0,0.30605658]
[1718084215017,0.01892242,67764.0,67761.0,0.30705658]
[1718084215226,0.01892242,67764.0,67762.0,0.30605658]
[1718084215635,0.01892242,67764.0,67760.0,0.147579]
[1718084215854,0.01892242,67764.0,67761.0,0.30606194]
[1718084216119,0.01892242,67764.0,67761.0,0.30706194]
[1718084216325,0.01892242,67764.0,67762.0,0.30606194]
[1718084216700,0.01892242,67764.0,67760.0,0.147579]
[1718084216907,0.01892242,67764.0,67761.0,0.3060635]
[1718084219555,0.01892242,67764.0,67761.0,0.3070635]
[1718084219763,0.01892242,67764.0,67762.0,0.3060635]
[1718084220320,0.07918661,67766.0,67762.0,0.3060635]
[1718084221148,0.07918661,67766.0,67763.0,0.07215996]
[1718084221371,0.07918661,67775.0,67764.0,0.3060635]
[1718084221525,0.07918661,67774.0,67765.0,0.2336]
[1718084221727,0.07918661,67774.0,67766.0,0.3060635]
[1718084222551,0.07918661,67774.0,67767.0,0.22406724]
[1718084222757,0.07918661,67774.0,67768.0,0.38256774]
[1718084222876,0.07918661,67774.0,67769.0,0.38256774]
[1718084223072,0.07918661,67774.0,67770.0,0.38256774]
[1718084223333,0.01892242,67773.0,67771.0,0.38256774]
[1718084223537,0.11892242,67772.0,67771.0,0.07650424]
[1718084223736,0.1533,67772.0,67771.0,0.30601885]
[1718084223998,0.01892242,67771.0,67763.0,0.147571]
[1718084224186,0.01892242,67771.0,67764.0,0.30603513]
[1718084224520,0.01892242,67771.0,67764.0,0.45360513]